bitfinex-derivatives/quotes_SOLF0:USTF0_20250411
["timestamp","ask_amount","ask_price","bid_price","bid_amount"]
[1744332647710,38.16,112.5,112.49,8.8957]
[1744332648911,0.06706885,112.51,112.49,8.8957]
[1744332649719,0.06706885,112.51,112.5,8.8949]
[1744332650323,0.06706885,112.51,112.48,0.06317059]
[1744332651624,0.06706885,112.51,112.5,8.8949]
[1744332653729,0.06706885,112.51,112.49,8.8952]
[1744332654027,0.06706885,112.51,112.48,0.06317059]
[1744332654729,0.06706885,112.51,112.5,8.8949]
[1744332658731,0.06706885,112.51,112.49,8.61049211]
[1744332659026,38.16,112.53,112.52,8.8933]
[1744332659222,56.46099211,112.56,112.52,8.8933]
[1744332659419,56.46099211,112.56,112.51,8.61049211]
[1744332659616,8.61049211,112.56,112.51,8.61049211]
[1744332659821,47.57049211,112.56,112.51,8.61049211]
[1744332660027,38.96,112.56,112.52,8.61049211]
[1744332660226,0.06128529,112.55,112.53,8.61049211]
[1744332660726,0.06128529,112.55,112.54,8.8917]
[1744332667031,47.57049211,112.59,112.56,8.8899]
[1744332667241,47.57049211,112.59,112.55,8.61049211]
[1744332667432,47.57049211,112.59,112.56,8.89]
[1744332667741,38.96,112.59,112.55,10.95599211]
[1744332668137,0.06173804,112.58,112.56,0.0617962]
[1744332669433,0.06173804,112.58,112.57,8.8892]
[1744332671935,0.06173804,112.58,112.57,17.49969211]
[1744332672136,47.55049211,112.62,112.59,8.887]
[1744332673136,47.61585873,112.62,112.59,8.95039678]
[1744332673338,39.00536662,112.62,112.6,8.8868]
[1744332673640,0.06536662,112.62,112.6,8.8868]
[1744332673843,0.06536662,112.62,112.61,8.8862]
[1744332674342,8.67585873,112.62,112.6,2.1152]
[1744332674644,8.67585873,112.62,112.6,11.0017]
[1744332674838,0.06536662,112.62,112.6,2.1152]
[1744332677442,0.06536662,112.62,112.61,8.8862]
[1744332677834,0.06536662,112.62,112.6,11.002]
[1744332678039,8.67585873,112.62,112.59,0.06339678]
[1744332678242,0.06536662,112.62,112.59,0.06339678]
[1744332678636,0.06536662,112.62,112.59,8.67388889]
[1744332679038,0.06536662,112.62,112.6,8.8866]
[1744332681141,0.06536662,112.62,112.59,8.67388889]
[1744332681347,0.06536662,112.62,112.6,8.61049211]
[1744332681642,47.61585873,112.62,112.59,0.06339678]
[1744332681848,56.50165873,112.62,112.59,8.95079678]
[1744332682347,8.61049211,112.6,112.59,0.06339678]
[1744332682851,17.49749211,112.6,112.59,0.06339678]
[1744332684848,8.8888,112.58,112.54,8.8914]
[1744332685049,38.94,112.58,112.54,8.8914]
[1744332685248,38.94,112.58,112.53,13.43924414]
[1744332685547,38.94,112.58,112.56,8.8901]
[1744332686152,0.05974531,112.58,112.56,0.06547292]
[1744332686643,38.94,112.61,112.57,13.43924414]
[1744332686849,38.94,112.61,112.57,17.86074414]
[1744332687150,13.43924414,112.67,112.57,17.86074414]
[1744332687342,38.18,112.66,112.59,13.43924414]
[1744332687853,0.06471266,112.64,112.61,0.0642997]
[1744332688053,0.06471266,112.64,112.62,8.8849]
[1744332688348,0.06471266,112.64,112.61,13.50354384]
[1744332688547,0.06471266,112.64,112.62,2.2218]
[1744332689050,0.06471266,112.64,112.63,8.8846]
[1744332691941,0.06471266,112.64,112.61,2.3133997]
[1744332692954,0.06471266,112.64,112.61,11.1991997]
[1744332693451,0.06471266,112.64,112.61,0.0642997]
[1744332694152,0.06471266,112.64,112.61,8.9499997]
[1744332697655,0.06471266,112.64,112.61,0.0642997]
[1744332697952,38.18,112.63,112.61,0.0642997]
[1744332698354,8.8854,112.62,112.61,0.0642997]
[1744332698651,38.18,112.63,112.55,13.43924414]
[1744332698848,13.43924414,112.62,112.55,13.43924414]
[1744332699048,8.8874,112.6,112.56,8.8897]
[1744332699555,47.0674,112.6,112.56,8.8897]
[1744332699750,8.8878,112.59,112.57,0.0578962]
[1744332699955,0.05855176,112.59,112.57,0.0578962]
[1744332700457,8.94675176,112.59,112.57,0.0578962]
[1744332702257,0.05855176,112.59,112.57,0.0578962]
[1744332703258,8.94675176,112.59,112.57,0.0578962]
[1744332703457,0.05855176,112.59,112.57,0.0578962]
[1744332704060,0.05855176,112.59,112.57,8.9466962]
[1744332704356,0.05855176,112.59,112.57,0.0578962]
[1744332705962,0.05855176,112.59,112.57,8.9470962]
[1744332706262,0.05855176,112.59,112.57,0.0578962]
[1744332706451,0.05855176,112.59,112.57,8.9471962]
[1744332707765,0.05855176,112.59,112.57,0.0578962]
[1744332709365,0.05855176,112.59,112.57,8.9467962]
[1744332710869,0.05855176,112.59,112.58,8.8886]
[1744332711064,38.18,112.63,112.57,13.49714034]
[1744332711462,47.0651,112.63,112.59,8.8874]
[1744332712174,8.94695903,112.62,112.6,0.06025537]
[1744332712666,13.50080317,112.62,112.6,0.06025537]
[1744332712872,8.8862,112.61,112.6,0.06025537]
[1744332713771,8.8883,112.59,112.54,2.2001]
[1744332713973,47.0883,112.59,112.54,2.2001]
[1744332714173,47.0883,112.59,112.55,8.8902]
[1744332714773,0.06478889,112.58,112.56,0.06044467]
[1744332715472,8.95338889,112.58,112.56,0.06044467]
[1744332715773,0.06478889,112.58,112.56,0.06044467]
[1744332717067,8.8894,112.57,112.56,0.06044467]
[1744332718275,8.8922,112.54,112.5,2.1896]
[1744332718476,8.8922,112.54,112.51,8.8938]
[1744332719073,8.8929,112.53,112.47,18.03604414]
[1744332719274,8.8929,112.53,112.47,20.22564414]
[1744332719579,0.0681118,112.51,112.5,8.8949]
[1744332720377,0.0681118,112.51,112.49,8.95280967]
[1744332720572,0.0681118,112.51,112.49,0.05740967]
[1744332721279,37.7681118,112.51,112.49,0.05740967]
[1744332721572,8.8949,112.5,112.49,0.05740967]
[1744332721772,37.7681118,112.51,112.49,0.05740967]
[1744332722266,8.8949,112.5,112.49,0.05740967]
[1744332722470,37.7681118,112.51,112.44,2.3008]
[1744332722675,37.7,112.51,112.44,2.3008]
[1744332722977,8.8961,112.49,112.45,8.8984]
[1744332723473,0.06183152,112.48,112.45,8.8984]
[1744332723678,0.06183152,112.48,112.46,0.05829952]
[1744332724473,8.95833152,112.48,112.46,0.05829952]
[1744332724667,0.06183152,112.48,112.46,0.05829952]
[1744332727382,8.95833152,112.48,112.46,0.05829952]
[1744332729082,8.8973,112.47,112.46,0.05829952]
[1744332729282,46.6173,112.47,112.46,0.05829952]
[1744332732783,37.72,112.47,112.4,13.43924414]
[1744332732982,37.72,112.47,112.38,339.0993033]
[1744332733177,37.72,112.47,112.4,8.9021]
[1744332733389,8.8995,112.45,112.38,339.0993033]
[1744332733576,37.72,112.44,112.38,339.0993033]
[1744332733775,37.72,112.44,112.4,8.902]
[1744332733975,37.72,112.44,112.4,13.43924414]
[1744332734181,0.06810328,112.43,112.41,8.96111211]
[1744332734893,0.06810328,112.43,112.41,0.05951211]
[1744332735183,8.9012,112.42,112.41,0.05951211]
[1744332735687,8.9033,112.4,112.35,20.02124414]
[1744332735886,37.72,112.4,112.35,6.582]
[1744332736085,37.72,112.4,112.33,51.15924414]
[1744332736388,37.72,112.4,112.35,13.43924414]
[1744332736890,37.72,112.43,112.37,13.43924414]
[1744332737099,37.72,112.43,112.39,13.43924414]
[1744332737383,8.8997,112.44,112.4,8.9024]
[1744332737584,8.8997,112.44,112.39,13.43924414]
[1744332737989,46.6192,112.45,112.39,13.43924414]
[1744332738187,0.06355987,112.43,112.4,2.2600902]
[1744332738392,0.06355987,112.43,112.4,6.8713902]
[1744332738588,0.06355987,112.43,112.42,8.9007]
[1744332739484,0.06355987,112.43,112.41,8.9017]
[1744332740993,0.06355987,112.43,112.4,8.9616902]
[1744332741291,37.74,112.42,112.4,0.0591902]
[1744332741494,37.74,112.42,112.4,8.9615902]
[1744332741681,0.06355987,112.43,112.4,8.9615902]
[1744332741882,0.06355987,112.43,112.4,0.0591902]
[1744332742194,0.06355987,112.43,112.41,8.9019]
[1744332743288,0.06355987,112.43,112.4,0.0591902]
[1744332743289,37.74,112.42,112.4,0.0591902]
[1744332743696,8.902,112.41,112.4,0.0591902]
[1744332745092,46.6415,112.42,112.4,0.0591902]
[1744332745294,37.74,112.42,112.4,0.0591902]
[1744332746385,0.06355987,112.43,112.4,0.0591902]
[1744332746997,0.06355987,112.43,112.41,8.9016]
[1744332747896,0.06355987,112.43,112.4,13.5369902]
[1744332748793,8.96395987,112.43,112.4,13.5369902]
[1744332749397,0.06355987,112.43,112.4,13.5369902]
[1744332750000,0.06355987,112.43,112.41,8.9018]
[1744332751387,0.06355987,112.43,112.4,13.5370902]
[1744332753594,0.06355987,112.43,112.4,4.6346902]
[1744332753991,0.06355987,112.43,112.4,6.8025902]
[1744332754197,0.06355987,112.43,112.42,8.9012]
[1744332755795,0.06355987,112.43,112.41,8.9016]
[1744332755998,0.06355987,112.43,112.4,6.8025902]
[1744332756399,0.06355987,112.43,112.41,8.9016]
[1744332757196,0.06355987,112.43,112.42,8.9012]
[1744332757403,13.43924414,112.52,112.41,13.43924414]
[1744332757597,38.14,112.51,112.43,13.43924414]
[1744332758300,8.8961,112.49,112.46,8.898]
[1744332758803,47.0345,112.51,112.47,8.8972]
[1744332759001,0.05867658,112.49,112.47,8.8972]
[1744332759599,0.05867658,112.49,112.46,8.96290781]
[1744332759802,0.05867658,112.49,112.46,0.06520781]
[1744332760303,0.05867658,112.49,112.47,8.8968]
[1744332761101,0.05867658,112.49,112.46,8.96280781]
[1744332761903,0.05867658,112.49,112.47,8.8971]
[1744332762297,0.05867658,112.49,112.46,0.06520781]
[1744332762498,0.05867658,112.49,112.46,6.71650781]
[1744332762804,0.05867658,112.49,112.48,8.8965]
[1744332765005,0.05867658,112.49,112.46,6.71650781]
[1744332765805,0.05867658,112.49,112.47,8.8968]
[1744332767610,0.05867658,112.49,112.46,6.71650781]
[1744332768108,0.05867658,112.49,112.48,8.8965]
[1744332775613,8.95477658,112.49,112.46,15.61420781]
[1744332775804,8.95477658,112.49,112.46,8.96290781]
[1744332776512,8.95477658,112.49,112.46,0.06520781]
[1744332776813,47.0165,112.48,112.46,0.06520781]
[1744332777510,38.12,112.48,112.46,8.96310781]
[1744332778312,38.12,112.48,112.47,8.8973]
[1744332778714,0.05867658,112.49,112.47,8.8973]
[1744332779015,0.05867658,112.49,112.46,13.50445195]
[1744332781510,0.05867658,112.49,112.47,2.2913]
[1744332781705,0.05867658,112.49,112.48,8.8965]
[1744332781914,37.7,112.51,112.47,6.7194]
[1744332782113,13.89344414,112.58,112.5,13.43924414]
[1744332782314,37.7,112.57,112.5,13.43924414]
[1744332783117,8.94784568,112.55,112.52,8.95169404]
[1744332783317,0.05684568,112.55,112.52,0.05889404]
[1744332783613,8.94814568,112.55,112.52,0.05889404]
[1744332783818,0.05684568,112.55,112.52,0.05889404]
[1744332784319,8.8917,112.54,112.52,0.05889404]
[1744332784509,46.5717,112.54,112.52,0.05889404]
[1744332784706,37.68,112.54,112.52,0.05889404]
[1744332785620,46.5721,112.54,112.52,0.05889404]
[1744332786118,8.8925,112.53,112.52,0.05889404]
[1744332786419,51.11924414,112.54,112.47,6.7194]
[1744332786817,37.68,112.54,112.48,13.43924414]
[1744332787320,0.06188439,112.52,112.51,8.8937]
[1744332790221,0.06188439,112.52,112.5,8.95486779]
[1744332790722,0.06188439,112.52,112.51,8.8941]
[1744332792924,0.06188439,112.52,112.5,8.95506779]
[1744332793928,0.06188439,112.52,112.5,0.06036779]
[1744332794426,8.8941,112.51,112.5,0.06036779]
[1744332794728,46.5741,112.51,112.5,0.06036779]
[1744332795616,37.68,112.51,112.5,0.06036779]
[1744332795821,0.06188439,112.52,112.5,0.06036779]
[1744332796121,0.06188439,112.52,112.51,8.8941]
[1744332796421,37.68,112.54,112.5,0.06036779]
[1744332796629,37.68,112.54,112.52,8.8929]
[1744332796827,51.11924414,112.57,112.52,8.8929]
[1744332797127,51.11924414,112.57,112.52,8.8932]
[1744332797428,8.95196859,112.56,112.53,0.06475759]
[1744332798029,8.8912,112.55,112.53,0.06475759]
[1744332798329,0.06126859,112.56,112.53,0.06475759]
[1744332798531,8.8917,112.54,112.53,0.06475759]
[1744332799231,46.5717,112.54,112.53,0.06475759]
[1744332804834,37.68,112.54,112.53,0.06475759]
[1744332806035,37.68,112.54,112.53,8.95725759]
[1744332806234,8.95206859,112.56,112.53,0.06475759]
[1744332807736,8.95206859,112.56,112.53,8.95675759]
[1744332808935,8.95206859,112.56,112.53,0.06475759]
[1744332809630,8.8913,112.55,112.53,0.06475759]
[1744332809832,0.06126859,112.56,112.53,0.06475759]
[1744332810035,8.8917,112.54,112.53,0.06475759]
[1744332810837,8.8914,112.55,112.53,0.06475759]
[1744332811639,8.8917,112.54,112.53,0.06475759]
[1744332813740,0.06126859,112.56,112.53,0.06475759]
[1744332814331,8.8913,112.55,112.53,0.06475759]
[1744332815632,8.8917,112.54,112.53,0.06475759]
[1744332817642,8.8913,112.55,112.53,0.06475759]
[1744332817942,0.06126859,112.56,112.53,0.06475759]
[1744332818142,8.8915,112.55,112.53,0.06475759]
[1744332818945,8.95176859,112.56,112.53,0.06475759]
[1744332820634,0.06126859,112.56,112.53,8.95685759]
[1744332820842,0.06126859,112.56,112.53,0.06475759]
[1744332821245,0.06126859,112.56,112.55,8.59963382]
[1744332821544,0.06126859,112.56,112.54,8.59963382]
[1744332821745,0.06126859,112.56,112.55,8.59963382]
[1744332821949,37.0,112.6,112.55,8.59963382]
[1744332822144,37.0,112.6,112.58,8.59963382]
[1744332822337,37.0,112.6,112.59,8.59963382]
[1744332822946,37.0,112.6,112.58,17.48783382]
[1744332823146,37.0,112.6,112.58,17.55258005]
[1744332823448,37.0,112.6,112.58,8.95294623]
[1744332823742,37.0,112.6,112.59,8.8878]
[1744332825448,37.0,112.6,112.58,8.95304623]
[1744332825647,37.0,112.6,112.58,0.06474623]
[1744332825847,45.8874,112.6,112.58,0.06474623]
[1744332830160,8.8878,112.59,112.58,0.06474623]
[1744332830368,50.43174166,112.6,112.53,2.2605]
[1744332831064,13.43174166,112.58,112.53,2.2605]
[1744332831258,37.0,112.57,112.52,4.3543]
[1744332831460,37.0639075,112.57,112.54,0.06002083]
[1744332831960,37.0639075,112.57,112.54,8.95122083]
[1744332833170,45.9535075,112.57,112.54,0.06002083]
[1744332834372,45.9535075,112.57,112.54,8.95172083]
[1744332836260,37.0639075,112.57,112.55,8.8909]
[1744332836666,37.0639075,112.57,112.54,13.49176249]
[1744332836866,0.0639075,112.57,112.54,13.49176249]
[1744332837468,0.0639075,112.57,112.56,8.8901]
[1744332842068,8.8858,112.62,112.59,8.8877]
[1744332842572,37.2,112.63,112.59,8.8877]
[1744332843066,8.8858,112.62,112.57,2.2059]
[1744332843268,0.05930465,112.62,112.6,0.06759407]
[1744332843773,8.8868,112.61,112.6,0.06759407]
[1744332844069,0.05930465,112.62,112.6,0.06759407]
[1744332845870,0.05930465,112.62,112.6,8.95419407]
[1744332846066,0.05930465,112.62,112.6,0.06759407]
[1744332847070,8.8862,112.61,112.6,0.06759407]
[1744332847265,0.05930465,112.62,112.6,0.06759407]
[1744332848169,8.94510465,112.62,112.6,0.06759407]
[1744332851373,8.8862,112.61,112.6,0.06759407]
[1744332851577,13.49104631,112.62,112.55,37.2]
[1744332851778,13.43174166,112.6,112.52,57.12904166]
[1744332851972,37.2,112.59,112.53,8.8921]
[1744332852575,13.43174166,112.58,112.52,13.2606]
[1744332852772,0.06075191,112.57,112.55,0.0655931]
[1744332852972,46.0909,112.56,112.55,0.0655931]
[1744332853479,37.2,112.56,112.55,0.0655931]
[1744332853986,46.0901,112.56,112.55,0.0655931]
[1744332854784,8.8918,112.54,112.51,8.894]
[1744332854981,37.2,112.56,112.51,8.894]
[1744332855578,8.8913,112.55,112.51,8.894]
[1744332856083,0.06477392,112.54,112.52,0.05694465]
[1744332858381,8.95667392,112.54,112.52,0.05694465]
[1744332859086,8.8925,112.53,112.52,0.05694465]
[1744332862090,8.95687392,112.54,112.52,0.05694465]
[1744332866596,0.06477392,112.54,112.52,8.94994465]
[1744332866985,0.06477392,112.54,112.52,0.05694465]
[1744332867184,0.06477392,112.54,112.52,8.95024465]
[1744332867393,0.06477392,112.54,112.52,0.05694465]
[1744332868698,8.95657392,112.54,112.52,0.05694465]
[1744332868900,8.67270481,112.54,112.52,0.05694465]
[1744332869097,36.68,112.53,112.52,0.05694465]
[1744332870300,45.5725,112.53,112.52,0.05694465]
[1744332878615,36.68,112.53,112.52,0.05694465]
[1744332879007,0.06477392,112.54,112.52,8.95024465]
[1744332879209,8.60793089,112.59,112.53,8.60793089]
[1744332879410,8.60793089,112.56,112.49,366.66755916]
[1744332879712,2.2574,112.62,112.48,10.73753089]
[1744332879713,8.60793089,112.52,112.48,10.73753089]
[1744332879919,45.28793089,112.52,112.48,2.1296]
[1744332880118,17.50263089,112.51,112.47,8.8968]
[1744332880320,8.60793089,112.51,112.47,8.8968]
[1744332880507,0.05872532,112.5,112.48,0.06223494]
[1744332880819,8.95362532,112.5,112.48,0.06223494]
[1744332881115,0.05872532,112.5,112.48,0.06223494]
[1744332881517,8.95372532,112.5,112.48,0.06223494]
[1744332882219,0.05872532,112.5,112.48,8.95853494]
[1744332882907,8.95372532,112.5,112.48,0.06223494]
[1744332883319,0.05872532,112.5,112.48,0.06223494]
[1744332883912,8.60793089,112.49,112.48,0.06223494]
[1744332884113,45.5757,112.49,112.48,0.06223494]
[1744332884313,54.18363089,112.49,112.48,0.06223494]
[1744332884914,45.5757,112.49,112.48,0.06223494]
[1744332885414,36.68,112.49,112.48,0.06223494]
[1744332886723,0.05872532,112.5,112.48,8.67016583]
[1744332886916,0.05872532,112.5,112.48,17.56666583]
[1744332888227,0.05872532,112.5,112.49,8.8957]
[1744332889127,0.05872532,112.5,112.48,17.56626583]
[1744332889525,0.05872532,112.5,112.48,8.67016583]
[1744332889731,135.16183715,112.61,112.49,8.60793089]
[1744332889937,137.46583715,112.61,112.55,8.60793089]
[1744332890220,137.46583715,112.61,112.5,2.2256]
[1744332890221,39.48,112.6,112.5,2.2256]
[1744332890420,8.60793089,112.57,112.52,8.60793089]
[1744332890615,8.60793089,112.56,112.51,8.60793089]
[1744332890823,8.8911,112.55,112.53,0.06487138]
[1744332891422,8.9559714,112.56,112.53,0.06487138]
[1744332891619,0.0654714,112.56,112.53,0.06487138]
[1744332892026,22.3385556,112.54,112.53,0.06487138]
[1744332892222,52.9268556,112.54,112.47,2.3472]
[1744332892429,13.4468556,112.52,112.47,2.3472]
[1744332892627,39.48,112.51,112.45,2.2954]
[1744332893329,0.05684344,112.49,112.48,13.4468556]
[1744332893629,48.3723,112.54,112.49,8.8952]
[1744332894135,48.3723,112.54,112.48,13.4468556]
[1744332894629,48.3723,112.54,112.5,0.0568642]
[1744332894832,0.0635836,112.52,112.5,0.0568642]
[1744332895330,8.9575836,112.52,112.5,0.0568642]
[1744332895728,0.0635836,112.52,112.5,0.0568642]
[1744332896736,48.3741,112.51,112.5,0.0568642]
[1744332897530,61.8209556,112.51,112.5,0.0568642]
[1744332897840,8.8969,112.48,112.45,2.2954]
[1744332899134,0.06349026,112.48,112.45,2.35728436]
[1744332899937,0.06349026,112.48,112.46,8.8976]
[1744332900139,0.06349026,112.48,112.45,2.35728436]
[1744332900332,0.06349026,112.48,112.47,8.8973]
[1744332900529,0.06349026,112.48,112.45,2.35728436]
[1744332900835,39.54349026,112.48,112.45,0.06188436]
[1744332901030,39.54349026,112.48,112.43,2.1291]
[1744332901031,13.4468556,112.47,112.39,17.8054556]
[1744332901235,13.4468556,112.47,112.39,2.1751]
[1744332901438,13.4468556,112.45,112.39,2.1751]
[1744332901639,39.48,112.44,112.39,2.1751]
[1744332902040,8.9005,112.43,112.39,11.0782]
[1744332902242,0.06443057,112.43,112.4,0.05817043]
[1744332902441,0.06443057,112.43,112.4,13.50502603]
[1744332902844,0.06443057,112.43,112.41,8.902]
[1744332903247,0.06443057,112.43,112.4,0.05817043]
[1744332904840,0.06443057,112.43,112.41,8.9019]
[1744332905546,0.06443057,112.43,112.42,8.9012]
[1744332906348,0.06443057,112.43,112.4,8.96057043]
[1744332906748,0.06443057,112.43,112.4,0.05817043]
[1744332906952,0.06443057,112.43,112.35,1.54824932]
[1744332907250,21.55098844,112.42,112.34,2.1281]
[1744332907449,41.18,112.41,112.34,11.0352]
[1744332908148,0.06690744,112.39,112.36,0.06380426]
[1744332908748,41.8742,112.45,112.36,0.06380426]
[1744332908955,41.8742,112.45,112.36,41.18]
[1744332909153,41.18,112.45,112.37,21.55098844]
[1744332909339,41.18,112.45,112.39,21.55098844]
[1744332909546,4.0922,112.49,112.4,4.4289]
[1744332909745,21.55098844,112.52,112.41,21.55098844]
[1744332910052,0.06620028,112.48,112.45,0.05831331]
[1744332910247,0.06620028,112.48,112.44,21.55098844]
[1744332910451,0.06620028,112.48,112.45,4.5089]
[1744332910648,0.06620028,112.48,112.45,4.56489881]
[1744332910948,176.34183715,112.53,112.46,21.55098844]
[1744332911346,185.23483715,112.53,112.49,8.8956]
[1744332911646,144.05483715,112.53,112.49,8.8956]
[1744332911852,135.16183715,112.53,112.48,21.55098844]
[1744332912151,0.05658379,112.52,112.5,0.05755187]
[1744332912351,135.16183715,112.53,112.5,21.60854031]
[1744332912653,131.64053715,112.53,112.51,2.1329]
[1744332912952,8.8908,112.56,112.51,11.0267]
[1744332913151,41.18,112.58,112.51,2.1329]
[1744332913354,62.73098844,112.58,112.48,41.18]
[1744332913649,0.06467763,112.55,112.53,0.06548441]
[1744332913849,41.24467763,112.55,112.53,0.06548441]
[1744332914446,41.24467763,112.55,112.46,2.1329]
[1744332914752,41.18,112.55,112.46,2.1329]
[1744332915452,41.18,112.55,112.47,21.55098844]
[1744332915654,0.06427615,112.52,112.49,21.61565552]
[1744332915955,46.1107,112.59,112.49,21.55098844]
[1744332916253,8.8887,112.58,112.53,8.8922]
[1744332916747,8.8887,112.58,112.54,8.8916]
[1744332916940,0.06113993,112.57,112.54,0.0564539]
[1744332917455,0.06113993,112.57,112.54,8.9476539]
[1744332917649,0.06113993,112.57,112.54,0.0564539]
[1744332919355,0.06113993,112.57,112.55,8.8904]
[1744332919555,0.06113993,112.57,112.54,0.0564539]
[1744332919949,0.06113993,112.57,112.56,8.8901]
[1744332922856,0.06113993,112.57,112.55,8.8907]
[1744332923554,0.06113993,112.57,112.54,0.0564539]
[1744332924452,0.06113993,112.57,112.56,8.8901]
[1744332925254,0.06113993,112.57,112.54,0.0564539]
[1744332925661,0.06113993,112.57,112.55,8.8905]
[1744332926958,0.06113993,112.57,112.54,0.0564539]
[1744332927465,8.95093993,112.57,112.54,0.0564539]
[1744332928358,50.11093993,112.57,112.54,0.0564539]
[1744332930866,0.06113993,112.57,112.54,0.0564539]
[1744332931061,0.06113993,112.57,112.54,2.2738539]
[1744332931266,0.06113993,112.57,112.56,8.8901]
[1744332932373,0.06113993,112.57,112.55,8.8907]
[1744332933072,0.06113993,112.57,112.54,8.9477539]
[1744332933466,0.06113993,112.57,112.54,0.0564539]
[1744332933670,41.20113993,112.57,112.54,0.0564539]
[1744332933966,8.8904,112.56,112.54,0.0564539]
[1744332934175,41.20113993,112.57,112.54,0.0564539]
[1744332935072,8.8902,112.56,112.54,0.0564539]
[1744332935771,41.20113993,112.57,112.54,0.0564539]
[1744332936167,0.06113993,112.57,112.54,0.0564539]
[1744332936765,8.95093993,112.57,112.54,0.0564539]
[1744332937662,8.95093993,112.57,112.54,8.9481539]
[1744332938377,8.8903,112.56,112.54,0.0564539]
[1744332939069,8.95083993,112.57,112.54,8.9480539]
[1744332939273,8.95083993,112.57,112.54,0.0564539]
[1744332939577,0.06113993,112.57,112.54,0.0564539]
[1744332939872,8.8906,112.56,112.54,0.0564539]
[1744332940978,41.96113993,112.57,112.54,0.0564539]
[1744332941966,44.18493993,112.57,112.54,0.0564539]
[1744332943976,41.96113993,112.57,112.54,0.0564539]
[1744332945877,8.8907,112.56,112.54,0.0564539]
[1744332946779,41.96113993,112.57,112.54,0.0564539]
[1744332948280,41.96113993,112.57,112.49,6.6967]
[1744332948480,44.118,112.57,112.49,6.6967]
[1744332948680,8.8932,112.53,112.49,15.592]
[1744332948882,44.118,112.57,112.49,6.6967]
[1744332949189,8.8913,112.55,112.52,8.8932]
[1744332949485,0.06384935,112.54,112.52,0.06269476]
[1744332950681,8.95604935,112.54,112.52,0.06269476]
[1744332952181,8.8925,112.53,112.52,0.06269476]
[1744332952387,41.9,112.53,112.45,13.44801646]
[1744332952588,15.79261646,112.52,112.44,49.30305657]
[1744332952886,13.44801646,112.48,112.44,49.30305657]
[1744332953084,41.9,112.47,112.44,49.30305657]
[1744332953875,41.96736641,112.47,112.44,49.36391725]
[1744332954080,0.06736641,112.47,112.44,49.36391725]
[1744332954389,0.06736641,112.47,112.45,8.8983]
[1744332954987,0.06736641,112.47,112.44,49.36391725]
[1744332954988,0.06736641,112.47,112.44,58.26321725]
[1744332955289,0.06736641,112.47,112.44,49.36391725]
[1744332955482,8.96526641,112.47,112.44,49.36391725]
[1744332956285,8.96526641,112.47,112.44,0.06086068]
[1744332956787,0.06736641,112.47,112.44,8.96046068]
[1744332957490,8.96466641,112.47,112.44,0.06086068]
[1744332958087,8.96466641,112.47,112.44,8.96046068]
[1744332958485,0.06736641,112.47,112.44,0.06086068]
[1744332959088,8.8986,112.46,112.44,0.06086068]
[1744332959989,0.06736641,112.47,112.44,0.06086068]
[1744332959990,8.8988,112.45,112.44,0.06086068]
[1744332962389,50.8184,112.46,112.44,0.06086068]
[1744332962589,41.92,112.46,112.44,0.06086068]
[1744332963291,8.8988,112.45,112.44,0.06086068]
[1744332963589,41.92,112.46,112.39,4.3643]
[1744332963890,46.0644,112.46,112.36,21.55385348]
[1744332964091,46.0644,112.46,112.37,2.1142]
[1744332964391,8.9021,112.41,112.38,8.9039]
[1744332964589,46.0644,112.46,112.37,2.1142]
[1744332964790,0.05855571,112.41,112.38,0.06175898]
[1744332965090,8.96105571,112.41,112.38,0.06724748]
[1744332965288,0.05855571,112.41,112.38,0.06724748]
[1744332965486,8.96095571,112.41,112.38,0.06724748]
[1744332965689,8.96095571,112.41,112.38,8.97154748]
[1744332965892,0.05855571,112.41,112.38,0.06724748]
[1744332966793,0.05855571,112.41,112.4,8.9028]
[1744332968292,0.05855571,112.41,112.39,8.9033]
[1744332968704,0.05855571,112.41,112.38,0.06724748]
[1744332968895,0.05855571,112.41,112.33,327.77845916]
[1744332969092,15.3226,112.41,112.28,49.30305657]
[1744332969394,8.9082,112.34,112.28,50.85182268]
[1744332969590,71.59385348,112.35,112.29,74.94463815]
[1744332969990,8.9093,112.32,112.29,74.94463815]
[1744332970390,8.9093,112.32,112.31,0.05940608]
[1744332970897,0.05688789,112.33,112.31,0.05940608]
[1744332971498,8.96528789,112.33,112.26,241.2581001]
[1744332971696,0.05688789,112.33,112.26,241.2581001]
[1744332971892,55.8,112.36,112.23,60.0851]
[1744332972100,8.9092,112.32,112.25,8.914]
[1744332972398,27.98575348,112.35,112.24,21.55385348]
[1744332972599,0.06391487,112.3,112.27,0.05568146]